Workbook

Sheet Sheet1
F2: Chase Building
F4: Square Footage Summary
B5: Total Building | D5: 37808
D6: (plus basement)
D8: Gross
B9: 1 St Floor | D9: Sq. Ft. | F9: %
B11: Chase Bank | D11: 8940 | F11: =+D11/D5 -> 0.2364578925
B13: Daycare | D13: 6718 | F13: =+D13/D5 -> 0.177687262
B15: Available | D15: 3816 | F15: =+D15/D5 -> 0.1009310199
B17: Common | D17: 800 | F17: =+D17/D5 -> 0.02115954295
D18: __________
D19: =SUM(D11:D17) -> 20274 | F19: =SUM(F11:F17) -> 0.5362357173
B22: 2nd Floor
B24: Daycare | D24: 2455 | F24: =+D24/D5 -> 0.06493334744
B26: Available | D26: 14579 | F26: =+D26/D5 -> 0.3856062209
B28: Common | D28: 500 | F28: =+D28/D5 -> 0.01322471435
D29: __________
D30: =SUM(D24:D28) -> 17534 | F30: =SUM(F24:F28) -> 0.4637642827
B34: Total | D34: =+D19+D30 -> 37808 | F34: =+F19+F30 -> 1
B37: Total Daycare | D37: =+D13+D24 -> 9173 | F37: =+D37/D34 -> 0.2426206094
B39: Total Chase | D39: =+D11 -> 8940 | F39: =+D39/D34 -> 0.2364578925
B41: Total Occupied | D41: =SUM(D37:D39) -> 18113 | F41: =+D41/D34 -> 0.4790785019
B43: Total Available | D43: =+D26+D15 -> 18395 | F43: =+D43/D34 -> 0.4865372408
B45: Total Common | D45: =+D17+D28 -> 1300 | F45: =+D45/D34 -> 0.0343842573
A47: chase sq. ft.xlsx | D47: =+D41+D43+D45 -> 37808
